Cogmind - Beta 13 @@@ ROGUE MODE // 2024.04.02 @ 21:37:56 Player: emory Result: Destroyed by S-10 Pest with Light Assault Rifle Performance ------------- Evolutions (1) 500 Regions Visited (2) 400 Robots Destroyed (8) 40 Value Destroyed (255) 255 Prototype IDs (0) 0 Alien Tech Used (0) 0 Bonus (0) 0 TOTAL SCORE: 1195 Bonus ------- None Cogmind --------- Core Integrity 0/400 Matter 300/300 Energy 99/100 System Corruption 0% Temperature Cool (9) Movement Core (350) Ox6 Location -9/Materials Parts ------- > --- POWER (1) -------- (None) > --- PROPULSION (4) --- (None) > --- UTILITY (2) ------ Large Storage Unit > --- WEAPON (2) ------- (None) > --- INVENTORY (15) --- Aluminum Leg Improved Hover Unit Heat Sink Small Matter Pod (50) Datajack Peak State ------------ > --- POWER ------------ Light Ion Engine > --- PROPULSION ------- Aluminum Leg Aluminum Leg > --- UTILITY ---------- Large Storage Unit Signal Interpreter > --- WEAPON ----------- EM Pulse Gun Light Assault Rifle > --- INVENTORY -------- Aluminum Leg Heat Sink Small Matter Pod Hammer [Rating: 7] Favorites ----------- Power Light Ion Engine Engine Light Ion Engine Propulsion Aluminum Leg Leg Aluminum Leg Utility Large Storage Unit Device High-powered Tractor Beam Storage Large Storage Unit Processor Signal Interpreter Weapon EM Pulse Gun Energy Gun EM Pulse Gun Ballistic Gun Light Assault Rifle Build | -11 -10 -9 ------- Run | Yrd Mat Mat Slots Evolved 2 | . . 2 Power . | . . . Propulsion 2 | . . 2 Utility . | . . . Weapon . | . . . Parts Attached 11 | 5 3 3 Power 1 | 1 . . Engine 1 | 1 . . Core . | . . . Reactor . | . . . Propulsion 2 | 2 . . Treads . | . . . Leg 2 | 2 . . Wheel . | . . . Hover . | . . . Flight . | . . . Utility 4 | . 3 1 Device 1 | . . 1 Storage 2 | . 2 . Processor 1 | . 1 . Hackware . | . . . Protection . | . . . Artifact . | . . . Weapon 4 | 2 . 2 Energy Gun 3 | 1 . 2 Energy Cannon . | . . . Ballistic Gun 1 | 1 . . Ballistic Cannon . | . . . Launcher . | . . . Special Weapon . | . . . Impact Weapon . | . . . Slashing Weapon . | . . . Piercing Weapon . | . . . Special Melee Weapon . | . . . Unidentified Prototypes . | . . . Parts Lost 8 | . . 8 Power 1 | . . 1 Propulsion 2 | . . 2 Utility 1 | . . 1 Weapon 4 | . . 4 Highest Loss Streak 5 | . . 5 To Critical Strikes . | . . . Average Slot Usage (%) 75 | . 89 51 Engine 9 | . 14 3 Leg 24 | . 28 19 Device 2 | . . 6 Storage 9 | . 9 11 Processor 5 | . 8 . Energy Gun 11 | . 14 7 Ballistic Gun 10 | . 14 3 Naked Turns . | . . . Heaviest Build 26 | 6 26 26 Greatest Support 20 | 20 20 20 Greatest Overweight (x) 7 | . 1 7 Average Overweight (x) . | . . 1 Largest Inventory Capacity 15 | 5 15 15 Average Capacity 11 | 5 11 15 Most Carried 7 | 3 6 7 Average Carried 4 | . 4 5 Final Capacity 15 | 5 15 15 Final Carried 5 | 1 5 5 Class Distribution -------------------- 100% | Mutant Dominant Class ---------------- Mutant | -10/Materials Mutant | -9/Materials Resources | -11 -10 -9 ----------- Run | Yrd Mat Mat Matter Collected 373 | 253 7 113 Remotely 56 | . . 56 Salvage Created 307 | 45 108 154 Parts 16 | 3 6 7 Haulers Intercepted . | . . . Recyclers Shooed . | . . . Parts Field Recycled . | . . . Retrieved Matter . | . . . Parts Self-Destructed . | . . . Prevented . | . . . Kills | -11 -10 -9 ------- Run | Yrd Mat Mat Combat Hostiles Destroyed 7 | 1 2 4 Guns 5 | 1 1 3 AOE 2 | . 1 1 Classes Destroyed 4 | 1 1 2 Watcher 1 | . 1 . Swarmer 1 | . . 1 Grunt 5 | 1 2 2 Brawler 1 | . . 1 Best Kill Streak 3 | 1 2 3 Combat Bots Only 3 | 1 2 3 Max Kills in Single Turn 1 | 1 1 1 Gunslinging . | . . . Exploded 1 | . 1 1 Melee . | . . . Uniques/NPCs Destroyed . | . . . Combat | -11 -10 -9 -------- Run | Yrd Mat Mat Hostile Shots Fired 134 | 4 9 121 Missed 43 | 1 6 36 Damage Taken 1107 | 32 47 1028 Core 409 | . . 409 Absorbed by Shields . | . . . Core Remaining (%) 100 | 100 100 . Volleys Fired 53 | 3 15 35 Largest 2 | 2 2 2 Hottest 60 | 60 60 60 Shots Fired 73 | 6 31 36 Gun 73 | 6 31 36 Cannon . | . . . Launcher . | . . . Special . | . . . Kinetic 33 | 3 15 15 Thermal 4 | . . 4 Explosive . | . . . Electromagnetic 36 | 3 16 17 Robot Hit Streak 6 | 2 6 6 Robot Miss Streak 5 | 2 5 4 Penetration Max . | . . . Secondary Targets 1 | . 1 . Max Gunslinging Chain 1 | . 1 . Shots Hit Robots 35 | 3 14 18 Core Hits 17 | 2 6 9 Critical Kills . | . . . Critical Parts Destroyed . | . . . Critical Strikes 1 | . 1 . Corrupt 1 | . 1 . Melee Attacks . | . . . Impact . | . . . Slashing . | . . . Piercing . | . . . Sneak Attacks . | . . . Combat Hostiles . | . . . Follow-up Attacks . | . . . Damage Inflicted 502 | 31 224 247 Guns 421 | 31 193 197 Cannons . | . . . Explosions 78 | . 31 47 Melee . | . . . Ramming 3 | . . 3 Kinetic 143 | 7 54 82 Thermal 111 | . 31 80 Explosive . | . . . Electromagnetic 245 | 24 139 82 Impact . | . . . Slashing . | . . . Piercing . | . . . Highest Corruption 2 | . 2 . Average Corruption 2 | . 2 . Corruption Purged . | . . . Corruption Blocked . | . . . Effects 5 | . 5 . Message Errors 1 | . 1 . Matter Fused 1 | . 1 . Energy Discharges 1 | . 1 . Data Loss (minor) 1 | . 1 . Misfires 1 | . 1 . Overload Shots . | . . . Overflow Damage . | . . . Projectiles . | . . . Explosions . | . . . Melee . | . . . Knockbacks . | . . . Impact . | . . . Kinetic . | . . . Secondary . | . . . Self-Inflicted Damage . | . . . Shots . | . . . Rammed . | . . . Targets Rammed 1 | . . 1 Kicked 1 | . . 1 Crushed . | . . . Highest Temperature 67 | 58 67 20 Average Temperature 23 | 34 25 7 Received Heat Transfer 342 | 18 27 297 Siege Activations . | . . . Robots Corrupted . | . . . Combat Hostiles . | . . . Parts Fried 2 | . 2 . Impact Corruptions . | . . . Robots Melted . | . . . Combat Hostiles . | . . . Parts Melted . | . . . Heat Transferred 175 | . . 175 Parts Sabotaged . | . . . Parts Stolen . | . . . Parts Stripped . | . . . Power Chain Reactions 2 | . 1 1 Alert | -11 -10 -9 ------- Run | Yrd Mat Mat Peak Influence 176 | 20 152 176 Initial 13 | . 13 . Average 78 | 2 101 75 Maximum Alert Level . | . . . Low Security (%) 100 | 100 100 100 Level 1 . | . . . Level 2 . | . . . Level 3 . | . . . Level 4 . | . . . Level 5 . | . . . High Security . | . . . Max Security . | . . . Squads Dispatched . | . . . Investigation . | . . . Extermination . | . . . Reinforcement . | . . . Assault . | . . . Garrison . | . . . Intercept . | . . . Searches Triggered . | . . . Construction Impeded . | . . . Haulers Reinforced . | . . . Active Scanning Responses . | . . . Cargo Convoy Interrupts . | . . . Stealth | -11 -10 -9 --------- Run | Yrd Mat Mat Distress Signals . | . . . Communications Jammed . | . . . Distress Signals . | . . . Times Spotted 23 | 1 6 16 Peak Tracking Total 9 | 1 3 9 Tactical Retreats 3 | . . 3 Traps | -11 -10 -9 ------- Run | Yrd Mat Mat Traps Triggered 1 | . 1 . Indirectly . | . . . Trap Hack Attempts . | . . . Triggered . | . . . Disarmed . | . . . Reprogrammed . | . . . Reused . | . . . Traps Extracted . | . . . Installed . | . . . Triggered . | . . . Machines | -11 -10 -9 ---------- Run | Yrd Mat Mat Machines Disabled 1 | . 1 . Max in Single Turn 1 | . 1 . Machines Repaired . | . . . Machines Dismantled . | . . . Machines Sabotaged . | . . . Overloaded Fab Kills . | . . . Hacking | -11 -10 -9 --------- Run | Yrd Mat Mat Machines Accessed 3 | . 3 . Terminals 2 | . 2 . Fabricators . | . . . Repair Stations . | . . . Recycling Units 1 | . 1 . Scanalyzers . | . . . Garrison Access . | . . . Total Hacks 5 | . 5 . Successful 3 | . 3 . Failed 2 | . 2 . Catastrophic . | . . . Database Lockouts . | . . . Manual . | . . . Terminals 4 | . 4 . Fabricators . | . . . Repair Stations . | . . . Recycling Units 1 | . 1 . Scanalyzers . | . . . Garrison Access . | . . . Terminal Hacks 2 | . 2 . Robot Analysis 1 | . 1 . Emergency Access Points 1 | . 1 . Fabricator Hacks . | . . . Repair Station Hacks . | . . . Recycling Unit Hacks 1 | . 1 . Recycle Component 1 | . 1 . Scanalyzer . | . . . Garrison Access Hacks . | . . . Unauthorized Hacks . | . . . Terminals . | . . . Fabricators . | . . . Repair Stations . | . . . Recycling Units . | . . . Scanalyzers . | . . . Garrison Access . | . . . Data Cores Recovered . | . . . Used . | . . . Hacking Detections 1 | . 1 . Full Trace Events . | . . . Feedback Events . | . . . Feedback Blocked . | . . . Robot Schematics Acquired . | . . . Robots Built . | . . . Authchips . | . . . Time . | . . . Total Robot Build Rating . | . . . Part Schematics Acquired . | . . . Parts Built . | . . . Authchips . | . . . Time . | . . . Total Part Build Rating . | . . . Parts Repaired . | . . . Time . | . . . Parts Recycled 1 | . 1 . Recycled Matter . | . . . Retrieved Matter . | . . . Retrieved Components . | . . . Parts Scanalyzed . | . . . Part Schematics Acquired . | . . . Parts Damaged . | . . . Bothacking | -11 -10 -9 ------------ Run | Yrd Mat Mat Used RIF Installer . | . . . Robots Hacked . | . . . Non-combat . | . . . Combat . | . . . Robot Hacks Applied . | . . . Relay Couplers Released . | . . . Fabnet Peak Effective % . | . . . Robots Rewired . | . . . Allies Hacked . | . . . Hacks Repelled . | . . . Allies | -11 -10 -9 -------- Run | Yrd Mat Mat Total Allies . | . . . Largest Group . | . . . Highest-Rated Group . | . . . Highest-Rated Ally . | . . . Total Orders . | . . . Ally Attacks . | . . . Total Damage . | . . . Kills . | . . . Allies Corrupted . | . . . Allies Melted . | . . . Intel | -11 -10 -9 ------- Run | Yrd Mat Mat Robot Analysis Total 1 | . 1 . Derelict Logs Recovered . | . . . Drone Launches . | . . . Drone Recoveries . | . . . Exploration | -11 -10 -9 ------------- Run | Yrd Mat Mat Turns Passed 863 | 127 457 279 Spaces Moved 447 | 101 244 102 Core 25 | 18 . 7 Treads . | . . . Legs 422 | 83 244 95 Wheels . | . . . Hover . | . . . Flight . | . . . Fastest Speed 50 | 50 120 190 Average Speed 160 | 107 165 202 Slowest Speed 400 | 120 190 400 Overloaded Moves . | . . . Propulsion Burnouts . | . . . Robots Hopped . | . . . Cave-ins Triggered . | . . . Exploration Rate (%) 24 | 9 44 19 Regions Visited 2 Branch Regions . Pre-discovered Areas . | . . . Known Exits Taken . | . . . Unknown Exits Taken 2 | 1 1 . Scrap Searched . | . . . Spaces Dug . | . . . Terrain Destroyed 8 | . 7 1 Melee . | . . . Projectile . | . . . AOE 8 | . 7 1 Terrain Rammed . | . . . Walls Destroyed . | . . . Machines Disabled . | . . . Actions | -11 -10 -9 --------- Run | Yrd Mat Mat Total 531 | 114 273 144 Wait . | . . . Move 445 | 100 243 102 Hop . | . . . Pick Up 18 | 6 9 3 Fast Attach . | . . . Attach 11 | 5 3 3 Detach 1 | . 1 . Swap . | . . . Drop 2 | . 2 . Fire 53 | 3 15 35 Melee . | . . . Ram . | . . . Kick 1 | . . 1 Crush . | . . . Escape Stasis . | . . . Rewire . | . . . Trap . | . . . Miscellaneous . | . . . Route ------- -11/Scrapyard -10/Materials (discovered 2 exits: *Mat x2) -9/Materials History --------- Turn | Location | Event 2 | -11/Scrapyard | Met Revision 17 101 | -11/Scrapyard | Discovered new exit (range 8) 128 | -11/Scrapyard | Entered Materials 213 | -10/Materials | Discovered new exit (range 13) 302 | -10/Materials | Build established: Mutant 495 | -10/Materials | Discovered new exit (range 11) 585 | -10/Materials | Entered another Materials area 585 | -9/Materials | Evolved 2 slots: Propulsion x2 710 | -9/Materials | Lost 3 parts (1p2w) 848 | -9/Materials | Core integrity fell below 50% 859 | -9/Materials | Core integrity fell below 20% 864 | -9/Materials | Destroyed by S-10 Pest with Light Assault Rifle Last Messages --------------- EM Pulse Gun destroyed. U-05 Engineer builds a Wall. T-07 Excavator is excavating. U-05 Engineer lays Concrete. T-07 Excavator is excavating. U-05 Engineer lays Concrete. Acquired Sml. Laser. Kicked R-06 Scavenger. Ramming works as a last resort when unarmed or blocked, but can have serious negative consequences. U-05 Engineer builds a Door. Aluminum Leg destroyed. S-10 Pest destroyed. Hpw. Tractor Beam destroyed. Sml. Laser destroyed. K-01 Serf collects debris. Critical hit (Burn: +37). K-01 Serf collects debris. K-01 Serf cleans the Terminal. Critical hit (Burn: +37). Map ----- +----------------------------------------------------+ | ???????????????????????????# #??+#???????? | | ???????????????????????????# #?# ###?????? | | ???????????????????????????# # ##### | | ???????????????????????????# # | | ???????????????????????????# / | | ?????????????????##????###?# # | | ?????????????????? ???# ?# # ##### | | ???????????????????# ??# ?# #?#####?????? | | ???????????????????# ###/####+##/####???????????? | | ???????????????????# #??????????????? | | ???????????????????+ # #???????????? | | ???????????????????# #???????????? | | ???????????????????# ##/###### # #???????????? | | ???????????????????# ?# # #?##???????????? | | ???????????????????#r ?# Y ## #??????????????? | | ???????????????????# ?# "" #? ???????????????? | | ???????????????????# # rYT" #? ???????????????? | | ???????????????????# # "" #? ???????????????? | | ??????????????????## # #? #####??????????? | | ??????????????????# ##s###### !!#??????????? | | ??????????????????# Y%[ !!#??????????? | | ??????????????????+ = !!#??????????? | | ??????????????????# !!#??????????? | | ??????????????????# ##### !!#??????????? | | ??????????????????# ^ #????? !!#??????????? | | ??????????????????# @ #???????###??????????? | | ??????????????????#]=[ #????????????????????? | | ??????????????????#][[ ^ #????????????????????? | | ??????????????????#=[ #????????????????????? | | ????????????????? #????????????????????? | | ??????????????? #????????????????????? | | ??????????????+ !!!#????????????????????? | | ??????????????# !!!#????????????????????? | | ??????????????# !!!#????????????????????? | | ??????????????# #????????????????????? | | ??????????????+ #????????????????????? | | ??????????????# #????????????????????? | | ????????????????######+## #????????????????????? | | ????????????????????????? #????????????????????? | | ????????????????????????? #????????????????????? | | ????????????????????????? ?????????????????????? | | ?????????????????????????????????????????????????? | | ?????????????????????????????????????????????????? | | ?????????????????????????????????????????????????? | | ?????????????????????????????????????????????????? | | ?????????????????????????????????????????????????? | | ?????????????????????????????????????????????????? | | ?????????????????????????????????????????????????? | | ?????????????????????????????????????????????????? | | ?????????????????????????????????????????????????? | +----------------------------------------------------+ Best States ------------- Heat Dissipation 28 Energy Generation 10 Energy Capacity 125 Matter Stores 300 Matter Capacity 300 Sight Range 16 Terrain Scan Density 10 Evasion (%) 55 Item Schematics ----------------- None Robot Schematics ------------------ None Fabricated ------------ Nothing Alien Tech Used ----------------- None Achievements -------------- None Challenges ------------ None Game ------ Seed ThrusterLongswordAmplifier Manual? 0 Play Time 00:18:18 Cumulative 1.4 hours Start 2024.03.31 @ 20:40:59 End 2024.04.02 @ 21:37:56 Sessions 2 Manual Loads 0 Difficulty Rogue Special Mode None Game No. 3 Rogue 3 Adventurer 0 Explorer 0 Win Type - Total 0 Types 0/0/0/0/0/0/0/0/0 Lore% 1 Gallery% 2 Achievement% 2 Wizard Run 0 Options --------- Layout 0 ASCII 1 Keyboard 0 Movement Mouse Keybinds 0 Fullscreen 1 Font 12/Smallcaps Map View 76x50 Zoom Use 0% Tactical HUD 0 Map Filters NONE Filters NONE Steam SD RUN: 80953a79-ed9f-40fb-985f-9a3b94e09a54